bitfinex/quotes_ETHUSD_20241123
["timestamp","ask_amount","ask_price","bid_price","bid_amount"]
[1732322160511,0.03751046,3333.9,3332.3,0.2966]
[1732322160715,0.03751046,3333.9,3332.5,0.2966]
[1732322162228,0.03751046,3333.9,3332.6,0.2966]
[1732322162409,0.7876,3333.7,3331.9,0.2966]
[1732322162612,0.03751761,3333.6,3331.9,0.2966]
[1732322163358,0.7876,3333.5,3331.9,0.2966]
[1732322163562,0.03752028,3333.4,3331.9,0.2966]
[1732322164374,0.7876,3333.3,3331.9,0.2966]
[1732322164529,0.82512107,3333.3,3332.0,0.2966]
[1732322165134,3.51419462,3332.9,3331.6,0.0103547]
[1732322165353,0.7876,3332.7,3331.6,0.0103547]
[1732322165570,0.82513347,3332.6,3331.6,0.0103547]
[1732322166174,0.7876,3332.4,3331.6,0.0103547]
[1732322166355,0.03753342,3332.3,3331.6,0.0103547]
[1732322166654,0.47146622,3332.3,3331.6,0.0103547]
[1732322166863,0.03753342,3332.3,3331.6,0.0103547]
[1732322167445,0.037521,3332.8,3331.6,0.0103547]
[1732322167642,0.037521,3332.8,3331.6,0.3069547]
[1732322170499,0.037521,3332.8,3331.6,0.0103547]
[1732322171139,0.7876,3332.7,3331.6,0.0103547]
[1732322171479,0.03752704,3332.6,3331.6,0.0103547]
[1732322175786,0.7876,3332.5,3331.6,0.0103547]
[1732322175940,0.03752871,3332.4,3331.6,0.0103547]
[1732322176140,0.7876,3332.3,3331.6,0.0103547]
[1732322176383,0.03753239,3332.2,3331.6,0.0103547]
[1732322176743,0.7876,3332.1,3331.6,0.0103547]
[1732322177081,0.7876,3331.9,3331.6,0.0103547]
[1732322177257,0.03753669,3331.8,3331.6,0.0103547]
[1732322177657,0.7876,3331.7,3331.6,0.0103547]
[1732322177890,0.03753669,3331.8,3330.2,0.0603547]
[1732322178049,6.51419462,3331.6,3330.2,0.3569547]
[1732322178249,0.0375447,3331.5,3330.2,0.3569547]
[1732322178677,0.0375447,3331.5,3330.2,0.0603547]
[1732322178878,3.0,3331.4,3330.2,0.0603547]
[1732322179064,0.84130391,3331.3,3330.2,0.0603547]
[1732322179360,0.7772,3331.2,3330.2,0.0603547]
[1732322179538,0.03754426,3331.1,3330.2,0.0603547]
[1732322179974,0.03754426,3331.1,3330.3,0.2966]
[1732322180399,0.03754237,3331.0,3330.3,0.2966]
[1732322180743,0.03754237,3331.0,3330.2,0.0603547]
[1732322180950,0.03754237,3331.0,3330.2,0.0103547]
[1732322181142,0.03754022,3331.1,3330.3,1.5843]
[1732322181388,0.03753353,3331.5,3330.4,0.2966]
[1732322181600,0.03753353,3331.5,3330.6,0.2966]
[1732322182291,0.7772,3332.0,3330.6,0.2966]
[1732322182448,0.03752975,3331.9,3330.4,0.2966]
[1732322182650,0.03752975,3331.9,3330.4,0.45606547]
[1732322183984,3.144,3333.4,3330.4,0.45606547]
[1732322183985,0.7772,3332.4,3330.7,0.2966]
[1732322184188,0.03752618,3332.3,3330.9,0.2966]
[1732322184793,0.7772,3332.4,3330.9,0.2966]
[1732322184957,0.03752816,3332.3,3330.9,0.2966]
[1732322185388,0.03752816,3332.3,3330.7,0.2966]
[1732322185588,0.03752816,3332.3,3330.9,0.2966]
[1732322186489,0.03752216,3332.3,3331.1,0.2966]
[1732322186796,0.03751952,3332.8,3331.1,0.2966]
[1732322186960,0.03751952,3332.8,3331.3,0.2966]
[1732322188266,0.03751952,3332.8,3331.5,0.2966]
[1732322188963,0.7772,3333.8,3331.9,0.2966]
[1732322189296,0.7772,3333.6,3331.9,0.2966]
[1732322189464,0.03751433,3333.5,3331.9,0.2966]
[1732322189671,0.03751433,3333.5,3332.1,0.2966]
[1732322190201,0.7772,3333.4,3332.1,0.2966]
[1732322190400,0.03751612,3333.3,3332.1,0.2966]
[1732322190610,0.03751612,3333.3,3331.9,0.2966]
[1732322190813,0.03751612,3333.3,3331.9,0.45503]
[1732322192286,0.03750968,3333.2,3331.9,0.45503]
[1732322192464,0.7772,3333.8,3332.2,0.2966]
[1732322192669,0.03750755,3333.7,3332.2,0.2966]
[1732322193322,0.03750755,3333.7,3332.4,0.2966]
[1732322193466,0.03750755,3333.7,3332.7,1.8809]
[1732322193669,0.03750337,3334.1,3332.7,1.8809]
[1732322193872,0.05,3334.3,3332.8,0.01513987]
[1732322194093,0.05,3334.3,3332.9,1.8809]
[1732322194296,0.05,3334.3,3333.1,0.2966]
[1732322194519,0.05,3334.3,3333.3,0.2966]
[1732322194676,0.05,3334.3,3333.4,0.18960246]
[1732322195021,0.05,3334.3,3333.5,1.6085]
[1732322195187,0.05,3334.3,3331.0,0.0151205]
[1732322195188,0.05,3334.3,3332.1,1.6085]
[1732322195381,0.7772,3334.2,3332.3,1.6085]
[1732322195624,0.03750064,3334.1,3332.5,0.2966]
[1732322195923,0.05,3334.3,3332.9,0.2966]
[1732322196234,0.05,3334.3,3333.3,0.2966]
[1732322197079,0.05,3334.3,3333.2,1.6085]
[1732322197080,0.03749599,3334.6,3333.2,1.6085]
[1732322197426,0.0500456,3334.3,3333.2,1.6085]
[1732322197596,0.03750017,3334.2,3333.3,0.16085]
[1732322197922,0.08754579,3334.3,3333.3,0.16085]
[1732322198276,0.08754579,3334.3,3333.4,0.2966]
[1732322198604,0.08711166,3334.3,3333.3,0.16085]
[1732322198774,0.08711166,3334.3,3333.4,0.176935]
[1732322199180,0.7272,3334.2,3332.8,1.9051]
[1732322199379,0.03750596,3334.1,3332.0,1.6085]
[1732322199582,0.03750596,3334.1,3332.1,0.17600033]
[1732322200096,0.03750596,3334.1,3332.1,0.16085]
[1732322200293,0.04961147,3334.1,3332.2,0.2966]
[1732322201412,0.03750588,3334.0,3332.2,0.2966]
[1732322202086,0.7272,3333.9,3332.2,0.2966]
[1732322202436,0.03750908,3333.8,3332.2,0.2966]
[1732322202601,0.03750908,3333.8,3332.2,0.31174668]
[1732322202984,0.03750908,3333.8,3332.2,0.2966]
[1732322203210,0.08712055,3333.8,3332.2,0.2966]
[1732322203860,0.08712055,3333.8,3332.1,0.17599714]
[1732322203861,0.04961147,3333.8,3332.4,0.2966]
[1732322204041,0.04961147,3333.8,3332.6,0.2966]
[1732322204751,0.04961147,3333.8,3332.7,0.01513969]
[1732322204948,0.04961147,3333.8,3332.9,0.2966]
[1732322205266,0.04961147,3333.8,3332.8,1.661]
[1732322205267,0.04961147,3333.8,3333.1,0.2966]
[1732322205472,0.04961147,3333.8,3333.1,0.31172604]
[1732322205651,0.04961147,3333.8,3333.1,0.2966]
[1732322206025,0.04961147,3333.8,3333.1,0.31173041]
[1732322206222,0.04961147,3333.8,3333.3,0.2966]
[1732322206462,0.04961147,3333.8,3333.2,1.661]
[1732322206463,0.04961147,3333.8,3333.5,0.2966]
[1732322206757,0.04961147,3333.8,3333.6,0.01511956]
[1732322207335,0.0414311,3334.8,3334.5,8.76038853]
[1732322207668,0.0414311,3334.8,3333.7,1.9576]
[1732322207820,0.0414311,3334.8,3334.0,0.2966]
[1732322208153,0.0414311,3334.8,3334.1,0.01510118]
[1732322208361,0.0414311,3334.8,3334.0,0.2966]
[1732322208573,0.0414311,3334.8,3334.2,0.2966]
[1732322210330,0.0414311,3334.8,3334.2,0.31171277]
[1732322210529,0.0414311,3334.8,3334.2,0.2966]
[1732322210743,0.0414311,3334.8,3334.3,0.0151053]
[1732322211258,0.0414311,3334.8,3334.2,0.31169583]
[1732322211583,0.0414311,3334.8,3334.2,0.2966]
[1732322212174,0.0414311,3334.8,3334.3,0.01510057]
[1732322212684,0.0414311,3334.8,3334.2,0.2966]
[1732322213032,0.0414311,3334.8,3334.3,0.01509593]
[1732322213577,0.0414311,3334.8,3334.5,0.2966]
[1732322213876,0.0414311,3335.7,3335.3,8.7685689]
[1732322214188,0.0414311,3335.7,3334.6,0.19726959]
[1732322214189,0.7272,3335.6,3334.7,0.2966]
[1732322214330,0.03748349,3335.5,3334.7,0.2966]
[1732322214537,0.03748349,3335.5,3334.0,1.8325]
[1732322214739,0.7272,3335.4,3334.0,0.2966]
[1732322214968,0.0374883,3335.3,3334.0,0.2966]
[1732322215278,0.7272,3335.2,3334.0,0.2966]
[1732322215475,0.7272,3335.0,3334.0,0.2966]
[1732322215683,0.03749032,3334.9,3334.0,0.2966]
[1732322215982,0.7272,3334.8,3333.2,0.2966]
[1732322216185,0.0414311,3335.7,3333.6,0.2966]
[1732322216370,0.0414311,3335.7,3334.6,0.2966]
[1732322216542,0.0414311,3335.7,3334.8,1.8325]
[1732322216745,0.02237067,3336.5,3334.9,0.02997763]
[1732322217783,0.7272,3336.4,3334.8,2.20362415]
[1732322217960,0.02237067,3336.3,3335.0,0.2966]
[1732322218551,0.7272,3336.4,3335.0,0.2966]
[1732322218751,0.02237067,3336.3,3335.0,0.2966]
[1732322222778,0.74957067,3336.4,3335.0,0.32658352]
[1732322222974,0.7272,3336.4,3335.2,0.2966]
[1732322223229,0.7272,3336.4,3335.3,0.02998034]
[1732322223527,0.7272,3336.4,3335.4,0.2966]
[1732322223739,0.02237067,3336.3,3335.6,0.2966]
[1732322224018,0.7272,3336.4,3335.6,1.8772]
[1732322224226,0.78981497,3336.9,3335.8,0.2966]
[1732322224529,0.0402443,3336.9,3335.9,0.02997372]
[1732322225688,0.0402443,3336.9,3336.1,0.2966]
[1732322226029,0.0402443,3336.9,3336.5,0.2966]
[1732322226630,0.7272,3338.6,3336.6,0.02996613]
[1732322226947,0.7272,3338.6,3337.7,0.2966]
[1732322227692,0.02237067,3338.5,3337.7,0.2966]
[1732322228638,0.7272,3338.6,3337.7,0.2966]
[1732322228787,0.02237067,3338.5,3337.2,0.2966]
[1732322229504,0.02237067,3338.1,3336.9,0.2966]
[1732322229705,0.7272,3338.0,3335.2,1.5806]
[1732322230006,0.7272,3337.8,3335.4,1.5806]
[1732322230315,3.0,3338.5,3335.4,1.5806]
[1732322230316,0.7272,3337.6,3335.4,1.5806]
[1732322230526,0.7272,3337.4,3335.5,0.2966]
[1732322230850,0.7272,3337.2,3335.5,0.2966]
[1732322231054,0.02237067,3337.1,3335.5,0.2966]
[1732322231358,0.02237067,3337.1,3335.7,0.2966]
[1732322231506,0.7272,3337.2,3335.9,0.2966]
[1732322231843,0.7272,3338.1,3336.0,0.02997058]
[1732322232047,0.02237067,3338.0,3336.1,0.2966]
[1732322233948,0.02237067,3338.0,3336.2,0.02996892]
[1732322234249,0.02237067,3338.0,3336.4,0.2966]
[1732322234449,0.02237067,3338.0,3336.6,0.2966]
[1732322235410,0.02237067,3338.0,3336.6,0.326566]
[1732322235613,0.02237067,3338.0,3336.6,0.2966]
[1732322237334,0.02237067,3338.0,3336.7,0.2966]
[1732322237657,0.7272,3338.1,3336.7,0.2966]
[1732322237951,0.7272,3337.8,3336.7,0.2966]
[1732322238157,0.7272,3337.6,3336.7,0.2966]
[1732322238441,0.41172774,3337.5,3335.9,0.2966]
[1732322238647,0.7272,3337.4,3335.9,0.2966]
[1732322238867,0.7272,3337.4,3335.9,0.48806]
[1732322238868,0.02237067,3337.3,3335.9,0.48806]
[1732322239207,0.74957067,3337.4,3335.9,0.51064881]
[1732322239443,0.74957067,3337.4,3335.8,1.618]
[1732322239444,0.74957067,3337.4,3336.1,0.2966]
[1732322239828,0.02237067,3337.3,3336.1,0.2966]
[1732322240424,0.7272,3337.4,3336.2,0.2966]
[1732322240797,0.02237067,3337.3,3336.2,0.2966]
[1732322241220,0.02237067,3337.3,3335.9,0.2985]
[1732322241751,0.7295,3337.2,3335.0,0.2985]
[1732322241923,0.7295,3337.0,3335.0,0.2985]
[1732322242120,0.75187067,3336.9,3335.0,0.2985]
[1732322242708,0.75187067,3336.9,3335.1,0.2985]
[1732322243034,0.7295,3336.5,3335.1,0.2985]
[1732322243213,0.7295,3336.3,3335.1,0.2985]
[1732322243415,0.7295,3336.1,3335.1,0.2985]
[1732322243608,0.02237067,3336.0,3333.2,0.2985]
[1732322243807,0.02237067,3336.0,3333.3,0.02998856]
[1732322244218,0.02237067,3336.0,3333.5,0.2985]
[1732322244419,0.02237067,3336.0,3333.8,0.2985]
[1732322244757,0.02237067,3336.0,3334.3,1.618]
[1732322244909,0.7295,3336.1,3334.4,1.94648397]
[1732322245418,0.75187067,3336.5,3334.4,1.94648397]
[1732322245637,0.75187067,3336.5,3335.0,0.2985]
[1732322245832,0.75187067,3336.5,3334.5,0.1946484]
[1732322245833,0.7295,3337.4,3335.3,0.2985]
[1732322246160,0.7295,3337.4,3334.5,0.1946484]
[1732322246161,0.02237067,3337.3,3335.6,0.2985]
[1732322246355,0.02237067,3337.3,3336.0,0.2985]
[1732322247074,0.7295,3337.4,3336.0,0.32847321]
[1732322247261,0.7295,3337.8,3336.2,0.2985]
[1732322247405,0.7295,3337.8,3336.2,0.49314732]
[1732322247406,0.02237067,3337.7,3336.2,0.49314732]
[1732322248060,0.02237067,3337.7,3336.3,0.02997127]
[1732322248208,0.02237067,3337.7,3336.5,0.2985]
[1732322250125,0.02237067,3337.7,3336.6,0.2985]
[1732322250351,1.028,3337.6,3336.6,0.2985]
[1732322250556,0.02237067,3337.5,3336.6,0.2985]
[1732322251174,1.028,3337.6,3336.7,0.2985]
[1732322251334,0.02237067,3338.1,3336.7,0.2985]
[1732322251531,1.61613076,3338.2,3336.8,0.02996244]
[1732322251743,1.61613076,3338.2,3336.9,1.618]
[1732322252115,1.61613076,3338.2,3337.0,0.16479624]
[1732322252267,1.10811887,3338.2,3336.9,1.618]
[1732322252567,0.02237067,3338.1,3336.9,1.618]
[1732322252943,1.0857482,3338.2,3336.9,1.618]
[1732322253147,0.0577482,3338.2,3337.1,1.618]
[1732322253362,0.0577482,3338.2,3337.2,0.02995827]
[1732322253690,0.0577482,3338.2,3337.3,1.618]
[1732322253860,0.0577482,3338.2,3337.5,1.618]
[1732322254056,0.0577482,3338.2,3337.6,0.16479563]
[1732322254273,0.0577482,3338.2,3337.7,0.02995629]
[1732322254576,0.0577482,3338.2,3337.8,1.5402]
[1732322254778,0.0577482,3338.2,3337.9,0.02995307]
[1732322255747,0.0577482,3338.2,3338.0,1.5402]
[1732322255961,0.0577482,3338.2,3337.1,0.81849209]
[1732322255962,0.0577482,3339.5,3338.9,8.7522518]
[1732322256153,0.0577482,3339.5,3338.8,1.5402]
[1732322256154,0.08011887,3339.5,3338.8,1.5402]
[1732322256391,0.08011887,3339.5,3338.0,1.5402]
[1732322256589,0.08011887,3339.5,3338.1,0.18387]
[1732322256859,0.0577482,3339.5,3338.2,0.02995115]
[1732322257557,0.08011887,3339.5,3338.1,0.18387]
[1732322257760,0.08011887,3339.5,3338.2,0.17540195]
[1732322258497,0.0577482,3339.5,3338.3,0.0299509]
[1732322259361,0.0577482,3339.5,3338.4,1.5402]
[1732322259560,0.0577482,3339.5,3338.5,0.20450222]
[1732322260783,0.0577482,3339.5,3338.5,0.17455529]
[1732322261393,0.0577482,3339.5,3338.6,0.02994842]
[1732322261593,0.1456302,3340.3,3338.6,0.02994842]
[1732322261808,0.0577482,3340.8,3338.7,0.2985]
[1732322262297,0.74263609,3340.8,3338.7,0.2985]
[1732322262899,0.01,3340.6,3338.5,0.2985]
[1732322263071,0.01,3340.6,3338.2,0.2985]
[1732322263275,0.01,3340.0,3336.9,0.35850526]
[1732322263481,0.01,3340.0,3337.1,1.5402]
[1732322263706,0.01,3340.0,3337.2,0.02995558]
[1732322264019,3.01,3340.2,3337.4,0.2985]
[1732322264212,3.01,3340.2,3337.3,0.15701556]
[1732322264213,3.0,3340.2,3337.6,0.2985]
[1732322264413,3.0,3340.2,3337.5,1.57015331]
[1732322264414,3.0,3340.2,3337.9,0.2985]
[1732322264702,3.0,3340.2,3338.1,0.2985]
[1732322264910,0.8,3340.1,3338.1,0.2985]
[1732322265129,0.75263609,3340.8,3338.1,0.2985]
[1732322265268,0.74263609,3340.8,3338.3,1.5402]
[1732322265468,0.75263609,3340.8,3338.4,0.02994837]
[1732322265683,0.75263609,3340.8,3338.5,0.15701484]
[1732322265911,0.74263609,3340.8,3338.5,0.15701484]
[1732322266079,0.74263609,3340.8,3338.7,1.5402]
[1732322266280,0.74263609,3340.8,3338.8,0.32844498]
[1732322266500,0.0577482,3340.8,3338.8,0.32844498]
[1732322266798,0.0577482,3340.8,3339.2,0.2985]
[1732322268538,0.0577482,3340.8,3338.8,1.8387]
[1732322269412,0.0109818,3339.5,3338.8,1.8387]
[1732322269821,0.0109818,3339.5,3338.8,1.5402]
[1732322271537,0.0109818,3339.5,3338.9,0.15402]
[1732322271739,0.0109818,3339.5,3338.8,1.6945]
[1732322272932,0.0109818,3339.5,3339.0,0.2985]
[1732322273116,0.0109818,3339.5,3339.1,0.029942]
[1732322273321,0.0577482,3340.8,3340.1,0.2985]
[1732322273917,0.1442,3340.7,3340.1,0.2985]
[1732322274440,0.1442,3340.7,3338.6,0.32844217]
[1732322274797,0.1442,3340.7,3338.8,0.2985]
[1732322274999,0.1442,3340.7,3339.0,0.2985]
[1732322276026,0.1442,3340.7,3339.2,0.2985]
[1732322276351,0.0577482,3340.8,3339.4,0.2985]
[1732322276497,0.0577482,3340.8,3339.6,1.912]
[1732322277244,0.0577482,3340.8,3339.7,0.0299401]
[1732322277412,0.0577482,3340.8,3339.9,0.2985]
[1732322277600,0.0577482,3340.8,3340.1,0.2985]
[1732322277931,0.0577482,3340.8,3340.3,0.2985]
[1732322278749,0.0577482,3340.8,3340.4,0.2985]
[1732322278916,0.0265682,3340.8,3340.4,0.2985]
[1732322279517,0.0265682,3340.8,3340.6,0.2985]
[1732322279722,0.0265682,3340.8,3340.7,0.49269327]
[1732322281144,0.0265682,3340.8,3340.7,2.13612465]
[1732322281749,0.0265682,3340.8,3340.7,2.10619327]
[1732322282319,0.1707,3342.8,3341.5,1.6135]
[1732322283049,0.1707,3342.8,3341.6,0.02992166]
[1732322283251,0.1707,3342.8,3341.5,1.6135]
[1732322283637,0.69589432,3343.5,3340.8,0.21061933]
[1732322283638,0.1707,3342.5,3341.1,0.2985]
[1732322283815,0.1707,3342.5,3340.8,0.2985]
[1732322284221,0.1807,3342.5,3340.0,1.6135]
[1732322284447,0.1707,3342.5,3340.2,1.6135]
[1732322284676,0.1707,3342.5,3340.3,0.02993132]
[1732322284960,0.1707,3342.5,3340.3,0.2985]
[1732322285372,0.01,3342.2,3340.3,0.2985]
[1732322285520,0.1707,3342.1,3340.3,0.2985]
[1732322286535,0.1707,3342.1,3339.9,0.2985]
[1732322286735,0.37560337,3342.5,3339.8,1.6135]
[1732322286736,0.01,3341.9,3339.8,1.6135]
[1732322287082,0.1707,3341.8,3339.8,1.6135]
[1732322287586,0.1707,3341.8,3339.9,0.2985]
[1732322287873,0.1807,3341.4,3339.3,1.6135]
[1732322288083,0.1707,3341.4,3339.3,1.6135]
[1732322288245,0.02,3341.0,3339.0,1.6135]
[1732322288437,0.1707,3340.9,3339.0,1.6135]
[1732322288633,0.1707,3340.9,3339.1,0.2985]
[1732322288832,0.1707,3340.9,3339.1,0.1912]
[1732322289063,0.1707,3340.7,3337.9,1.6135]
[1732322289272,0.01,3340.6,3338.0,0.02994961]
[1732322289587,0.1707,3340.5,3338.1,0.2985]
[1732322289891,0.02,3340.4,3338.1,0.2985]
[1732322290034,0.1707,3340.3,3338.1,0.2985]
[1732322290240,0.1707,3339.9,3337.6,0.0567746]
[1732322290482,0.1707,3339.7,3337.6,0.0567746]
[1732322290661,0.1707,3339.7,3337.6,0.3552746]
[1732322291740,0.1707,3339.7,3337.6,0.0567746]
[1732322291939,0.1707,3339.7,3337.7,0.16702746]
[1732322293743,0.01,3339.4,3337.6,0.0567746]
[1732322294082,0.1707,3339.3,3337.6,0.0567746]
[1732322294244,0.1707,3339.1,3337.6,0.0567746]
[1732322294442,0.01,3338.9,3337.6,0.0567746]
[1732322294690,0.1707,3337.9,3337.6,0.0567746]
[1732322294984,0.1707,3337.9,3336.3,0.0567746]
[1732322295748,0.1807,3337.8,3336.3,0.0567746]
[1732322296045,0.1707,3337.8,3336.3,0.0567746]
[1732322296245,0.1807,3337.8,3336.3,0.0567746]
[1732322296543,0.1707,3337.8,3336.3,0.0567746]
[1732322296971,0.1707,3337.8,3336.3,1.6872746]
[1732322297353,0.1707,3337.8,3336.4,0.16872746]
[1732322297561,0.1707,3337.8,3336.4,0.19869686]
[1732322297960,0.1707,3337.8,3336.4,0.16872746]
[1732322298349,0.1707,3337.8,3336.4,0.1986964]
[1732322298658,0.1707,3337.8,3336.5,1.6305]
[1732322298956,0.1707,3339.1,3336.6,0.02996212]
[1732322299255,0.1707,3339.1,3336.7,0.16604621]
[1732322299754,0.1707,3339.1,3336.9,1.6305]
[1732322299957,0.1707,3339.1,3337.0,0.02996069]
[1732322301858,0.1707,3339.1,3337.0,0.32846069]
[1732322302066,0.1707,3339.1,3337.0,0.2985]
[1732322302738,0.1707,3339.1,3336.6,0.2985]
[1732322302949,0.1807,3339.0,3336.6,0.49707746]
[1732322303583,0.1807,3338.9,3336.6,0.49707746]
[1732322303886,0.1807,3338.9,3336.3,0.0567746]
[1732322303887,0.1707,3338.5,3336.3,0.0567746]
[1732322304033,0.1707,3338.3,3336.3,0.0567746]
[1732322304455,0.1707,3338.1,3336.3,0.0567746]
[1732322305398,0.1707,3338.0,3336.3,0.0567746]
[1732322306683,0.1707,3338.0,3335.0,0.0567746]
[1732322306885,3.0,3336.3,3335.0,0.0567746]
[1732322307191,3.154,3335.9,3335.0,0.0567746]
[1732322307738,3.114,3335.6,3335.0,0.0567746]
[1732322307954,0.114,3335.5,3335.0,0.0567746]
[1732322308285,0.114,3335.5,3335.0,0.0497884]
[1732322308577,3.0,3335.8,3335.0,0.0497884]
[1732322308578,0.114,3335.8,3335.0,0.0497884]
[1732322313049,0.114,3336.4,3335.0,0.0497884]
[1732322313859,0.114,3336.3,3335.0,0.0497884]
[1732322314173,0.114,3336.1,3335.0,0.0497884]
[1732322315175,0.124,3336.1,3335.0,0.0497884]
[1732322315582,0.114,3335.9,3335.0,0.0497884]
[1732322319864,3.114,3335.8,3335.0,0.0497884]
[1732322320064,0.114,3335.6,3335.0,0.0497884]
[1732322321905,3.258,3335.6,3335.0,0.0497884]
[1732322322889,0.114,3335.6,3335.0,0.0497884]
[1732322324593,3.258,3336.0,3335.0,0.0497884]
[1732322324770,0.8258,3335.9,3335.0,0.0497884]
[1732322325171,0.114,3336.0,3335.0,0.0497884]
[1732322325709,0.114,3336.5,3335.0,0.0497884]
[1732322325882,0.114,3336.5,3335.1,1.547]
[1732322326511,0.114,3337.2,3335.1,1.5967884]
[1732322326709,1.0480261,3337.2,3335.2,0.1547]
[1732322326873,0.114,3337.2,3335.2,0.1547]
[1732322327912,0.114,3337.2,3335.3,1.547]
[1732322329521,3.144,3337.1,3335.3,1.547]
[1732322330069,0.114,3337.2,3335.3,1.547]
[1732322330305,0.745028,3337.2,3335.3,1.72214884]
[1732322330510,3.889028,3337.2,3335.3,1.72214884]
[1732322330675,0.745028,3337.2,3335.3,1.72214884]
[1732322331238,0.745028,3337.2,3335.5,1.547]
[1732322331239,0.114,3337.2,3335.5,1.547]
[1732322331899,0.114,3337.2,3335.3,0.17514884]
[1732322331900,0.114,3337.2,3335.7,1.547]
[1732322333117,0.114,3337.6,3335.8,0.32847657]
[1732322333382,0.114,3338.2,3335.8,1.87547657]
[1732322333617,0.614,3338.2,3336.0,1.8455]
[1732322334519,3.614,3338.2,3336.0,1.8455]
[1732322335596,3.614,3338.2,3336.0,1.547]
[1732322335597,0.114,3338.1,3336.0,1.547]
[1732322335812,1.44547101,3338.0,3336.0,1.547]
[1732322336516,0.114,3338.1,3336.0,1.547]
[1732322336715,0.114,3338.1,3336.1,1.66467363]
[1732322336888,0.5,3338.2,3336.1,1.96317363]
[1732322337088,0.5828477,3338.1,3336.4,1.9332]
[1732322337422,0.114,3338.5,3336.4,1.9332]
[1732322337624,3.258,3338.5,3336.4,1.6347]
[1732322337827,0.75221008,3338.4,3336.4,1.6347]
[1732322337987,0.69758008,3338.4,3336.4,1.6347]
[1732322339398,0.69758008,3338.4,3336.4,1.9332]
[1732322340921,6.258,3338.1,3336.4,1.6347]
[1732322341089,3.0,3337.9,3336.4,1.3358]
[1732322341838,3.144,3337.8,3336.5,0.2985]
[1732322342133,3.144,3337.7,3336.5,0.2985]
[1732322342801,3.144,3337.7,3336.1,0.2985]
[1732322343793,3.144,3337.3,3336.1,0.2985]
[1732322343989,3.144,3337.1,3336.1,0.2985]
[1732322344435,3.144,3337.1,3336.0,0.33198765]
[1732322345097,3.89900498,3337.1,3336.0,0.33198765]
[1732322345832,3.144,3336.5,3336.0,0.33198765]
[1732322346629,3.144,3336.3,3336.0,0.33198765]
[1732322346942,1.22185232,3336.7,3336.0,0.33198765]
[1732322347596,1.22185232,3336.7,3335.3,1.6347]
[1732322347597,3.0,3336.5,3335.3,1.6347]
[1732322347945,3.0,3336.5,3335.1,0.0497884]
[1732322347946,3.7121,3336.2,3335.1,0.0497884]
[1732322348099,0.7121,3336.2,3335.1,0.0497884]
[1732322348503,3.0,3336.1,3335.1,0.0497884]
[1732322348722,3.144,3335.9,3335.1,0.0497884]
[1732322348924,0.68561,3335.8,3335.1,0.0497884]
[1732322349124,0.7121,3336.0,3335.1,0.0497884]
[1732322349347,4.48492755,3336.4,3335.2,1.6347]
[1732322349506,5.22906945,3336.4,3335.2,1.6347]
[1732322349699,1.37354926,3336.3,3335.2,1.6347]
[1732322350706,3.0,3336.1,3335.1,0.0497884]
[1732322351425,4.37354926,3336.3,3335.1,0.0497884]
[1732322351625,1.08297912,3336.2,3335.1,0.0497884]
[1732322351946,3.144,3336.0,3335.1,0.0497884]
[1732322352251,3.0,3335.9,3335.1,0.0497884]
[1732322352599,3.144,3335.7,3335.1,0.0497884]
[1732322352922,6.144,3335.6,3335.1,0.0497884]
[1732322353242,0.72185232,3335.7,3335.1,0.0497884]
[1732322353542,3.7121,3335.8,3335.1,0.0497884]
[1732322353543,0.75886185,3335.8,3335.2,1.6347]
[1732322353765,3.0,3336.1,3335.2,1.6347]
[1732322353916,1.11686284,3336.0,3335.2,1.6347]
[1732322354253,6.144,3336.1,3335.2,1.6347]
[1732322354554,3.144,3335.8,3335.1,0.0497884]
[1732322354740,0.7121,3335.6,3335.1,0.0497884]
[1732322354931,3.144,3335.4,3335.1,0.0497884]
[1732322355121,3.144,3335.3,3335.1,0.0497884]
[1732322355317,3.0,3335.2,3335.1,0.0497884]
[1732322355559,1.25803425,3335.5,3335.1,0.0497884]
[1732322356458,3.0,3335.4,3335.1,0.0497884]
[1732322356619,0.49701342,3335.3,3335.1,0.0497884]
[1732322357397,0.7545249,3335.5,3335.1,0.0497884]
[1732322357519,3.144,3335.3,3335.1,0.0497884]
[1732322357715,3.144,3335.3,3334.1,1.2531384]
[1732322357920,3.144,3335.1,3334.1,1.2531384]
[1732322358120,3.144,3334.9,3334.1,1.2531384]
[1732322359659,3.144,3334.9,3332.5,0.0594856]
[1732322359660,3.0,3334.8,3332.5,0.0594856]
[1732322359872,3.8545,3334.7,3332.5,0.0594856]
[1732322360918,3.8545,3334.7,3333.6,1.5021]
[1732322361131,3.8545,3334.7,3332.5,0.0594856]
[1732322361132,0.7105,3334.7,3333.9,1.8006]
[1732322361338,5.0,3334.8,3333.9,1.8006]
[1732322361944,4.27177503,3335.4,3333.9,1.8006]
[1732322362140,3.144,3335.2,3333.9,1.8006]
[1732322363229,3.144,3335.2,3333.9,1.5021]
[1732322363539,4.105,3334.8,3333.9,1.20331]
[1732322363741,3.144,3334.6,3333.9,1.20331]
[1732322364280,3.144,3334.6,3332.5,0.0594856]
[1732322364894,3.144,3334.4,3332.5,0.0594856]
[1732322366586,3.144,3334.6,3332.5,0.0594856]
[1732322366741,3.61115,3334.6,3333.6,1.5021]
[1732322367483,4.36955252,3334.6,3333.6,1.5021]
[1732322369349,3.144,3334.4,3333.6,1.5021]
[1732322369549,1.22555252,3334.6,3333.6,1.5021]
[1732322369550,3.144,3334.2,3333.6,1.5021]
[1732322370747,3.88369627,3334.2,3333.6,1.5021]
[1732322371793,3.88369627,3334.2,3333.5,0.0907002]
[1732322372978,3.0,3333.9,3333.5,0.0907002]
[1732322373161,3.144,3333.8,3333.5,0.0907002]
[1732322373494,3.144,3333.8,3333.2,1.5021]
[1732322373851,3.50581936,3333.8,3332.8,1.5021]
[1732322374055,3.144,3333.6,3332.8,1.5021]
[1732322374254,3.50581936,3333.6,3332.8,1.5021]
[1732322374590,3.144,3333.4,3332.7,0.0396206]